[Event "Titled Tuesday Blitz August 16 Early 2022"]
[White "Kovacevic, Radmila"]
[Black "Kuznetsova, Olga"]
[WhiteFideId "933171"]
[BlackFideId "4191323"]
[WhiteElo "2157"]
[BlackElo "2134"]
[Result "0-1"]
[Round "05"]
[TimeControl "180+2"]
[Date "2022.08.18"]
[WhiteClock "0:00:00"]
[BlackClock "0:00:00"]

1. e4 {[%clk 0:00:00]}  e5 {[%clk 0:00:00]} 2. Nf3 {[%clk 0:00:00]}  Nf6 {[%clk 0:00:00]} 3. Nxe5 {[%clk 0:00:00]}  d6 {[%clk 0:00:00]} 4. Nf3 {[%clk 0:00:00]}  Nxe4 {[%clk 0:00:00]} 5. Qe2 {[%clk 0:00:00]}  Qe7 {[%clk 0:00:00]} 6. d3 {[%clk 0:00:00]}  Nf6 {[%clk 0:00:00]} 7. Nc3 {[%clk 0:00:00]}  c6 {[%clk 0:00:00]} 8. Bg5 {[%clk 0:00:00]}  Qxe2+ {[%clk 0:00:00]} 9. Bxe2 {[%clk 0:00:00]}  Be7 {[%clk 0:00:00]} 10. Ne4 {[%clk 0:00:00]}  Nxe4 {[%clk 0:00:00]} 11. dxe4 {[%clk 0:00:00]}  Bxg5 {[%clk 0:00:00]} 12. Nxg5 {[%clk 0:00:00]}  h6 {[%clk 0:00:00]} 13. Nf3 {[%clk 0:00:00]}  Nd7 {[%clk 0:00:00]} 14. O-O-O {[%clk 0:00:00]}  Ke7 {[%clk 0:00:00]} 15. Nd4 {[%clk 0:00:00]}  Nc5 {[%clk 0:00:00]} 16. Rhe1 {[%clk 0:00:00]}  Be6 {[%clk 0:00:00]} 17. Nf5+ {[%clk 0:00:00]}  Bxf5 {[%clk 0:00:00]} 18. exf5 {[%clk 0:00:00]}  Rad8 {[%clk 0:00:00]} 19. b4 {[%clk 0:00:00]}  Nd7 {[%clk 0:00:00]} 20. Bg4+ {[%clk 0:00:00]}  Kf6 {[%clk 0:00:00]} 21. Rxd6+ {[%clk 0:00:00]}  Kg5 {[%clk 0:00:00]} 22. Bh3 {[%clk 0:00:00]}  Nf6 {[%clk 0:00:00]} 23. Red1 {[%clk 0:00:00]}  Rxd6 {[%clk 0:00:00]} 24. Rxd6 {[%clk 0:00:00]}  Re8 {[%clk 0:00:00]} 25. Kd1 {[%clk 0:00:00]}  Ne4 {[%clk 0:00:00]} 26. f4+ {[%clk 0:00:00]}  Kxf4 {[%clk 0:00:00]} 27. Rd7 {[%clk 0:00:00]}  Nf2+ {[%clk 0:00:00]} 28. Kc1 {[%clk 0:00:00]}  Nxh3 {[%clk 0:00:00]} 29. gxh3 {[%clk 0:00:00]}  f6 {[%clk 0:00:00]} 30. Rxb7 {[%clk 0:00:00]}  Kxf5 {[%clk 0:00:00]} 31. Rxg7 {[%clk 0:00:00]}  a6 {[%clk 0:00:00]} 32. Ra7 {[%clk 0:00:00]}  Rb8 {[%clk 0:00:00]} 33. a3 {[%clk 0:00:00]}  Rb6 {[%clk 0:00:00]} 34. Rg7 {[%clk 0:00:00]}  c5 {[%clk 0:00:00]} 35. c3 {[%clk 0:00:00]}  cxb4 {[%clk 0:00:00]} 36. cxb4 {[%clk 0:00:00]}  a5 {[%clk 0:00:00]} 37. bxa5 {[%clk 0:00:00]}  Ra6 {[%clk 0:00:00]} 38. Rg3 {[%clk 0:00:00]}  Rxa5 {[%clk 0:00:00]} 39. Kd2 {[%clk 0:00:00]}  Kf4 {[%clk 0:00:00]} 40. Ke2 {[%clk 0:00:00]}  f5 {[%clk 0:00:00]} 41. Rf3+ {[%clk 0:00:00]}  Ke5 {[%clk 0:00:00]} 42. Re3+ {[%clk 0:00:00]}  Kd4 {[%clk 0:00:00]} 43. Kf2 {[%clk 0:00:00]}  f4 {[%clk 0:00:00]} 44. Re6 {[%clk 0:00:00]}  Rxa3 {[%clk 0:00:00]} 45. Rxh6 {[%clk 0:00:00]}  Ke4 {[%clk 0:00:00]} 46. Re6+ {[%clk 0:00:00]}  Kf5 {[%clk 0:00:00]} 47. Rh6 {[%clk 0:00:00]}  Ra2+ {[%clk 0:00:00]} 48. Kf3 {[%clk 0:00:00]}  Ra3+ {[%clk 0:00:00]} 49. Kf2 {[%clk 0:00:00]}  Rb3 {[%clk 0:00:00]} 50. Rh8 {[%clk 0:00:00]}  Kg5 {[%clk 0:00:00]} 51. Kg2 {[%clk 0:00:00]}  Rb2+ {[%clk 0:00:00]} 52. Kg1 {[%clk 0:00:00]}  Kf5 {[%clk 0:00:00]} 53. Rf8+ {[%clk 0:00:00]}  Ke4 {[%clk 0:00:00]} 54. Ra8 {[%clk 0:00:00]}  Kf3 {[%clk 0:00:00]} 55. Ra3+ {[%clk 0:00:00]}  Ke4 {[%clk 0:00:00]} 56. h4 {[%clk 0:00:00]}  Kf5 {[%clk 0:00:00]} 57. h3 {[%clk 0:00:00]}  Re2 {[%clk 0:00:00]} 0-1


[Site "https://www.chess.com"]

[Event "Titled Tuesday Blitz August 16 Early 2022"]
[White "Krsnik Cohar, Ivan Vihor"]
[Black "Demidov, Mikhail"]
[WhiteFideId "14520044"]
[BlackFideId "4197143"]
[WhiteElo "2414"]
[BlackElo "2525"]
[Result "0-1"]
[Round "05"]
[TimeControl "180+1"]
[Date "2022.08.16"]
[WhiteClock "0:00:03"]
[BlackClock "0:00:37"]

1. e4 {[%clk 0:02:50]}  Nf6 {[%clk 0:02:58]} 2. Nc3 {[%clk 0:02:50]}  d5 {[%clk 0:02:58]} 3. exd5 {[%clk 0:02:50]}  Nxd5 {[%clk 0:02:58]} 4. h3 {[%clk 0:02:50]}  g6 {[%clk 0:02:57]} 5. Nf3 {[%clk 0:02:51]}  Bg7 {[%clk 0:02:57]} 6. Bc4 {[%clk 0:02:51]}  Nb6 {[%clk 0:02:55]} 7. Bb3 {[%clk 0:02:51]}  c5 {[%clk 0:02:55]} 8. d3 {[%clk 0:02:50]}  Nc6 {[%clk 0:02:54]} 9. O-O {[%clk 0:02:50]}  O-O {[%clk 0:02:53]} 10. Re1 {[%clk 0:02:37]}  c4 {[%clk 0:02:50]} 11. dxc4 {[%clk 0:02:31]}  Bxc3 {[%clk 0:02:48]} 12. bxc3 {[%clk 0:02:19]}  Qxd1 {[%clk 0:02:46]} 13. Rxd1 {[%clk 0:02:20]}  Bf5 {[%clk 0:02:43]} 14. Nd4 {[%clk 0:02:10]}  Rfd8 {[%clk 0:02:36]} 15. Bg5 {[%clk 0:02:04]}  Kf8 {[%clk 0:02:33]} 16. c5 {[%clk 0:01:58]}  Nd7 {[%clk 0:02:30]} 17. Nxf5 {[%clk 0:01:51]}  gxf5 {[%clk 0:02:29]} 18. Rd5 {[%clk 0:01:37]}  Nde5 {[%clk 0:02:27]} 19. f4 {[%clk 0:01:19]}  Rxd5 {[%clk 0:02:24]} 20. Bxd5 {[%clk 0:01:18]}  Nd7 {[%clk 0:02:24]} 21. Rb1 {[%clk 0:00:43]}  Rb8 {[%clk 0:02:22]} 22. Bh4 {[%clk 0:00:26]}  Ke8 {[%clk 0:02:10]} 23. Bf2 {[%clk 0:00:23]}  e6 {[%clk 0:02:09]} 24. Bf3 {[%clk 0:00:23]}  Kd8 {[%clk 0:02:08]} 25. Bd4 {[%clk 0:00:19]}  Kc7 {[%clk 0:02:06]} 26. Kf2 {[%clk 0:00:19]}  Rc8 {[%clk 0:01:44]} 27. Bh5 {[%clk 0:00:17]}  Rf8 {[%clk 0:01:40]} 28. Bg7 {[%clk 0:00:16]}  Rg8 {[%clk 0:01:39]} 29. Bd4 {[%clk 0:00:15]}  Nd8 {[%clk 0:01:37]} 30. Bf3 {[%clk 0:00:10]}  f6 {[%clk 0:01:28]} 31. Ke2 {[%clk 0:00:08]}  e5 {[%clk 0:01:22]} 32. Bd5 {[%clk 0:00:08]}  Rg6 {[%clk 0:01:15]} 33. Bf2 {[%clk 0:00:07]}  Nc6 {[%clk 0:01:12]} 34. Be6 {[%clk 0:00:04]}  Rxg2 {[%clk 0:01:10]} 35. Bxd7 {[%clk 0:00:02]}  Kxd7 {[%clk 0:01:09]} 36. Rxb7+ {[%clk 0:00:03]}  Ke6 {[%clk 0:01:00]} 37. Rxh7 {[%clk 0:00:04]}  exf4 {[%clk 0:00:59]} 38. Kf3 {[%clk 0:00:04]}  Rh2 {[%clk 0:00:59]} 39. c4 {[%clk 0:00:03]}  Ne5+ {[%clk 0:00:58]} 40. Ke2 {[%clk 0:00:04]}  f3+ {[%clk 0:00:58]} 41. Kf1 {[%clk 0:00:02]}  Rh1+ {[%clk 0:00:50]} 42. Bg1 {[%clk 0:00:02]}  Nxc4 {[%clk 0:00:50]} 43. c6 {[%clk 0:00:02]}  Nd2+ {[%clk 0:00:40]} 44. Kf2 {[%clk 0:00:02]}  Ne4+ {[%clk 0:00:41]} 45. Kxf3 {[%clk 0:00:01]}  Rxg1 {[%clk 0:00:41]} 46. c7 {[%clk 0:00:02]}  Rg8 {[%clk 0:00:39]} 47. h4 {[%clk 0:00:03]}  Rc8 {[%clk 0:00:38]} 48. Kf4 {[%clk 0:00:04]}  Nc3 {[%clk 0:00:37]} 49. Rh5 {[%clk 0:00:03]}  Nd5+ {[%clk 0:00:37]} 50. Kf3 {[%clk 0:00:03]}  Rxc7 {[%clk 0:00:37]} 0-1


[Site "https://www.chess.com"]

[Event "Titled Tuesday Blitz August 16 Early 2022"]
[White "Lakshmi C"]
[Black "McBryde, Lamel"]
[WhiteFideId "25035347"]
[BlackFideId "2058596"]
[WhiteElo "1775"]
[BlackElo "2136"]
[Result "1-0"]
[Round "05"]
[TimeControl "180+2"]
[Date "2022.08.18"]
[WhiteClock "0:00:00"]
[BlackClock "0:00:00"]

1. e4 {[%clk 0:00:00]}  Nf6 {[%clk 0:00:00]} 2. e5 {[%clk 0:00:00]}  Ne4 {[%clk 0:00:00]} 3. d4 {[%clk 0:00:00]}  d5 {[%clk 0:00:00]} 4. Bd3 {[%clk 0:00:00]}  e6 {[%clk 0:00:00]} 5. Nc3 {[%clk 0:00:00]}  Bb4 {[%clk 0:00:00]} 6. Bd2 {[%clk 0:00:00]}  Nxd2 {[%clk 0:00:00]} 7. Qxd2 {[%clk 0:00:00]}  c5 {[%clk 0:00:00]} 8. a3 {[%clk 0:00:00]}  Bxc3 {[%clk 0:00:00]} 9. bxc3 {[%clk 0:00:00]}  c4 {[%clk 0:00:00]} 10. Be2 {[%clk 0:00:00]}  O-O {[%clk 0:00:00]} 11. f4 {[%clk 0:00:00]}  f6 {[%clk 0:00:00]} 12. Nf3 {[%clk 0:00:00]}  Nc6 {[%clk 0:00:00]} 13. O-O {[%clk 0:00:00]}  Bd7 {[%clk 0:00:00]} 14. Qe1 {[%clk 0:00:00]}  f5 {[%clk 0:00:00]} 15. Ng5 {[%clk 0:00:00]}  h6 {[%clk 0:00:00]} 16. Nf3 {[%clk 0:00:00]}  Be8 {[%clk 0:00:00]} 17. Nh4 {[%clk 0:00:00]}  Kh7 {[%clk 0:00:00]} 18. Qg3 {[%clk 0:00:00]}  Rg8 {[%clk 0:00:00]} 19. Nf3 {[%clk 0:00:00]}  b6 {[%clk 0:00:00]} 20. h4 {[%clk 0:00:00]}  g6 {[%clk 0:00:00]} 21. Qh3 {[%clk 0:00:00]}  Qe7 {[%clk 0:00:00]} 22. g4 {[%clk 0:00:00]}  Qf7 {[%clk 0:00:00]} 23. Ng5+ {[%clk 0:00:00]}  Kg7 {[%clk 0:00:00]} 24. Nxf7 {[%clk 0:00:00]}  Kxf7 {[%clk 0:00:00]} 25. gxf5 {[%clk 0:00:00]}  Bd7 {[%clk 0:00:00]} 26. fxg6+ {[%clk 0:00:00]}  Rxg6+ {[%clk 0:00:00]} 27. Kh2 {[%clk 0:00:00]} 1-0


[Site "https://www.chess.com"]

[Event "Titled Tuesday Blitz August 16 Early 2022"]
[White "Lazavik, Denis"]
[Black "Beerdsen, Thomas"]
[WhiteFideId "13515110"]
[BlackFideId "1030108"]
[WhiteElo "2437"]
[BlackElo "2567"]
[Result "0-1"]
[Round "05"]
[TimeControl "180+1"]
[Date "2022.08.16"]
[WhiteClock "0:00:03"]
[BlackClock "0:00:08"]

1. d4 {[%clk 0:03:00]}  e6 {[%clk 0:02:57]} 2. c4 {[%clk 0:03:00]}  b6 {[%clk 0:02:58]} 3. e4 {[%clk 0:03:00]}  Bb7 {[%clk 0:02:58]} 4. Bd3 {[%clk 0:03:00]}  Nc6 {[%clk 0:02:59]} 5. Ne2 {[%clk 0:02:58]}  Nb4 {[%clk 0:02:58]} 6. Nbc3 {[%clk 0:02:58]}  Nxd3+ {[%clk 0:02:57]} 7. Qxd3 {[%clk 0:02:59]}  Ne7 {[%clk 0:02:57]} 8. h4 {[%clk 0:02:54]}  h5 {[%clk 0:02:41]} 9. Bg5 {[%clk 0:02:52]}  f6 {[%clk 0:02:41]} 10. Be3 {[%clk 0:02:52]}  d5 {[%clk 0:02:39]} 11. f3 {[%clk 0:02:26]}  Qd7 {[%clk 0:02:34]} 12. cxd5 {[%clk 0:02:22]}  exd5 {[%clk 0:02:35]} 13. O-O-O {[%clk 0:02:22]}  O-O-O {[%clk 0:02:34]} 14. Nf4 {[%clk 0:02:18]}  dxe4 {[%clk 0:02:29]} 15. fxe4 {[%clk 0:02:19]}  Qg4 {[%clk 0:02:24]} 16. d5 {[%clk 0:02:00]}  Ng6 {[%clk 0:02:00]} 17. Ne6 {[%clk 0:01:59]}  Bd6 {[%clk 0:02:00]} 18. Nxd8 {[%clk 0:01:56]}  Rxd8 {[%clk 0:02:00]} 19. Nb5 {[%clk 0:01:52]}  Be5 {[%clk 0:01:58]} 20. Nxa7+ {[%clk 0:01:49]}  Kb8 {[%clk 0:01:59]} 21. Nb5 {[%clk 0:01:43]}  Qxg2 {[%clk 0:01:49]} 22. Bd2 {[%clk 0:01:24]}  Nf4 {[%clk 0:01:41]} 23. Qc4 {[%clk 0:01:22]}  f5 {[%clk 0:01:09]} 24. Rhe1 {[%clk 0:00:35]}  fxe4 {[%clk 0:01:01]} 25. Qxe4 {[%clk 0:00:27]}  Qxe4 {[%clk 0:00:25]} 26. Rxe4 {[%clk 0:00:27]}  Nd3+ {[%clk 0:00:26]} 27. Kb1 {[%clk 0:00:22]}  Bxd5 {[%clk 0:00:21]} 28. Rxe5 {[%clk 0:00:05]}  Nxe5 {[%clk 0:00:22]} 29. Nc3 {[%clk 0:00:05]}  Bf3 {[%clk 0:00:21]} 30. Re1 {[%clk 0:00:05]}  Nd3 {[%clk 0:00:18]} 31. Re7 {[%clk 0:00:04]}  g6 {[%clk 0:00:16]} 32. Bg5 {[%clk 0:00:04]}  Rf8 {[%clk 0:00:09]} 33. a3 {[%clk 0:00:04]}  Bc6 {[%clk 0:00:06]} 34. Kc2 {[%clk 0:00:04]}  Nc5 {[%clk 0:00:06]} 35. Be3 {[%clk 0:00:04]}  Nb7 {[%clk 0:00:04]} 36. b4 {[%clk 0:00:04]}  Nd6 {[%clk 0:00:04]} 37. Bg5 {[%clk 0:00:04]}  Nc4 {[%clk 0:00:04]} 38. Kb3 {[%clk 0:00:03]}  Nd6 {[%clk 0:00:05]} 39. a4 {[%clk 0:00:03]}  Rf3 {[%clk 0:00:06]} 40. Kc2 {[%clk 0:00:02]}  Nf5 {[%clk 0:00:04]} 41. Rf7 {[%clk 0:00:01]}  Nd4+ {[%clk 0:00:05]} 42. Kd2 {[%clk 0:00:01]}  Rxf7 {[%clk 0:00:06]} 43. Kd3 {[%clk 0:00:01]}  Nf5 {[%clk 0:00:06]} 44. b5 {[%clk 0:00:02]}  Rd7+ {[%clk 0:00:07]} 45. Kc4 {[%clk 0:00:02]}  Bb7 {[%clk 0:00:08]} 46. Kb4 {[%clk 0:00:03]}  Rd4+ {[%clk 0:00:08]} 47. Ka3 {[%clk 0:00:03]}  Nxh4 {[%clk 0:00:08]} 0-1


[Site "https://www.chess.com"]

[Event "Titled Tuesday Blitz August 16 Early 2022"]
[White "Lehtosaari, Mauri"]
[Black "Yurasova, Daria"]
[WhiteFideId "501999"]
[BlackFideId "34146919"]
[WhiteElo "2200"]
[BlackElo "2021"]
[Result "0-1"]
[Round "05"]
[TimeControl "180+2"]
[Date "2022.08.18"]
[WhiteClock "0:00:00"]
[BlackClock "0:00:00"]

1. d4 {[%clk 0:00:00]}  d5 {[%clk 0:00:00]} 2. Nf3 {[%clk 0:00:00]}  Nf6 {[%clk 0:00:00]} 3. Bg5 {[%clk 0:00:00]}  Bf5 {[%clk 0:00:00]} 4. c3 {[%clk 0:00:00]}  e6 {[%clk 0:00:00]} 5. Qb3 {[%clk 0:00:00]}  Nbd7 {[%clk 0:00:00]} 6. Nbd2 {[%clk 0:00:00]}  Be7 {[%clk 0:00:00]} 7. e3 {[%clk 0:00:00]}  h6 {[%clk 0:00:00]} 8. Bf4 {[%clk 0:00:00]}  O-O {[%clk 0:00:00]} 9. Qxb7 {[%clk 0:00:00]}  Rb8 {[%clk 0:00:00]} 10. Qxc7 {[%clk 0:00:00]}  Qxc7 {[%clk 0:00:00]} 11. Bxc7 {[%clk 0:00:00]}  Rxb2 {[%clk 0:00:00]} 12. Ba6 {[%clk 0:00:00]}  Nb6 {[%clk 0:00:00]} 13. O-O {[%clk 0:00:00]}  Na4 {[%clk 0:00:00]} 14. Rfc1 {[%clk 0:00:00]}  Ba3 {[%clk 0:00:00]} 15. c4 {[%clk 0:00:00]}  Bb4 {[%clk 0:00:00]} 16. Nb3 {[%clk 0:00:00]}  Bd3 {[%clk 0:00:00]} 17. Ne5 {[%clk 0:00:00]}  Be2 {[%clk 0:00:00]} 18. Bb5 {[%clk 0:00:00]}  Nc3 {[%clk 0:00:00]} 19. Rxc3 {[%clk 0:00:00]}  Bxc3 {[%clk 0:00:00]} 20. Rc1 {[%clk 0:00:00]}  Rc8 {[%clk 0:00:00]} 21. Bd6 {[%clk 0:00:00]}  Ne4 {[%clk 0:00:00]} 22. Bc5 {[%clk 0:00:00]}  Nxc5 {[%clk 0:00:00]} 23. Nxc5 {[%clk 0:00:00]}  Rxc5 {[%clk 0:00:00]} 24. dxc5 {[%clk 0:00:00]}  Bxe5 {[%clk 0:00:00]} 25. c6 {[%clk 0:00:00]}  dxc4 {[%clk 0:00:00]} 26. a4 {[%clk 0:00:00]}  Bc7 {[%clk 0:00:00]} 27. g3 {[%clk 0:00:00]}  Bd3 {[%clk 0:00:00]} 28. Bxc4 {[%clk 0:00:00]}  Bxc4 {[%clk 0:00:00]} 29. Rxc4 {[%clk 0:00:00]}  Rb6 {[%clk 0:00:00]} 30. Kg2 {[%clk 0:00:00]}  Kf8 {[%clk 0:00:00]} 31. Kf3 {[%clk 0:00:00]}  Ke7 {[%clk 0:00:00]} 32. e4 {[%clk 0:00:00]}  Kd6 {[%clk 0:00:00]} 33. Ke3 {[%clk 0:00:00]}  Rxc6 {[%clk 0:00:00]} 34. Rd4+ {[%clk 0:00:00]}  Ke7 {[%clk 0:00:00]} 35. Rb4 {[%clk 0:00:00]}  Bb6+ {[%clk 0:00:00]} 36. Kf3 {[%clk 0:00:00]}  Rc3+ {[%clk 0:00:00]} 37. Kf4 {[%clk 0:00:00]}  Rc2 {[%clk 0:00:00]} 38. f3 {[%clk 0:00:00]}  g5+ {[%clk 0:00:00]} 39. Kg4 {[%clk 0:00:00]}  Kf6 {[%clk 0:00:00]} 40. f4 {[%clk 0:00:00]}  gxf4 {[%clk 0:00:00]} 41. gxf4 {[%clk 0:00:00]}  Rxh2 {[%clk 0:00:00]} 42. e5+ {[%clk 0:00:00]}  Kg7 {[%clk 0:00:00]} 43. Rb5 {[%clk 0:00:00]}  Rf2 {[%clk 0:00:00]} 44. a5 {[%clk 0:00:00]}  Be3 {[%clk 0:00:00]} 45. Rb4 {[%clk 0:00:00]}  Rxf4+ {[%clk 0:00:00]} 46. Rxf4 {[%clk 0:00:00]}  Bxf4 {[%clk 0:00:00]} 47. Kxf4 {[%clk 0:00:00]}  f6 {[%clk 0:00:00]} 48. exf6+ {[%clk 0:00:00]}  Kxf6 {[%clk 0:00:00]} 0-1


[Site "https://www.chess.com"]

[Event "Titled Tuesday Blitz August 16 Early 2022"]
[White "Malyi, Viacheslav"]
[Black "Fier, Alexandr"]
[WhiteFideId "14123983"]
[BlackFideId "2107139"]
[WhiteElo "2190"]
[BlackElo "2598"]
[Result "0-1"]
[Round "05"]
[TimeControl "180+2"]
[Date "2022.08.18"]
[WhiteClock "0:00:00"]
[BlackClock "0:00:00"]

1. e4 {[%clk 0:00:00]}  g6 {[%clk 0:00:00]} 2. d4 {[%clk 0:00:00]}  Bg7 {[%clk 0:00:00]} 3. Nc3 {[%clk 0:00:00]}  d6 {[%clk 0:00:00]} 4. f4 {[%clk 0:00:00]}  a6 {[%clk 0:00:00]} 5. Nf3 {[%clk 0:00:00]}  b5 {[%clk 0:00:00]} 6. Bd3 {[%clk 0:00:00]}  Bb7 {[%clk 0:00:00]} 7. e5 {[%clk 0:00:00]}  Nd7 {[%clk 0:00:00]} 8. Ne4 {[%clk 0:00:00]}  c5 {[%clk 0:00:00]} 9. c3 {[%clk 0:00:00]}  cxd4 {[%clk 0:00:00]} 10. cxd4 {[%clk 0:00:00]}  Nb6 {[%clk 0:00:00]} 11. O-O {[%clk 0:00:00]}  Nh6 {[%clk 0:00:00]} 12. Neg5 {[%clk 0:00:00]}  e6 {[%clk 0:00:00]} 13. Be3 {[%clk 0:00:00]}  Bxf3 {[%clk 0:00:00]} 14. Qxf3 {[%clk 0:00:00]}  d5 {[%clk 0:00:00]} 15. b3 {[%clk 0:00:00]}  Nf5 {[%clk 0:00:00]} 16. g4 {[%clk 0:00:00]}  Nxe3 {[%clk 0:00:00]} 17. Qxe3 {[%clk 0:00:00]}  Bh6 {[%clk 0:00:00]} 18. Kh1 {[%clk 0:00:00]}  Qe7 {[%clk 0:00:00]} 19. Rac1 {[%clk 0:00:00]}  Kd7 {[%clk 0:00:00]} 20. Nh3 {[%clk 0:00:00]}  Rhc8 {[%clk 0:00:00]} 21. g5 {[%clk 0:00:00]}  Bf8 {[%clk 0:00:00]} 22. Nf2 {[%clk 0:00:00]}  Qa3 {[%clk 0:00:00]} 23. Ng4 {[%clk 0:00:00]}  Be7 {[%clk 0:00:00]} 24. Nh6 {[%clk 0:00:00]}  Ke8 {[%clk 0:00:00]} 25. Rxc8+ {[%clk 0:00:00]}  Rxc8 {[%clk 0:00:00]} 26. f5 {[%clk 0:00:00]}  gxf5 {[%clk 0:00:00]} 27. Nxf5 {[%clk 0:00:00]}  exf5 {[%clk 0:00:00]} 28. Bxf5 {[%clk 0:00:00]}  Rc6 {[%clk 0:00:00]} 29. e6 {[%clk 0:00:00]}  fxe6 {[%clk 0:00:00]} 30. Bxe6 {[%clk 0:00:00]}  Qxa2 {[%clk 0:00:00]} 31. Bg4 {[%clk 0:00:00]}  Qc2 {[%clk 0:00:00]} 32. Bf3 {[%clk 0:00:00]}  Qg6 {[%clk 0:00:00]} 33. Re1 {[%clk 0:00:00]}  Rc7 {[%clk 0:00:00]} 34. Qe5 {[%clk 0:00:00]}  Kd8 {[%clk 0:00:00]} 35. Bxd5 {[%clk 0:00:00]}  Nxd5 {[%clk 0:00:00]} 36. Qxd5+ {[%clk 0:00:00]}  Qd6 {[%clk 0:00:00]} 37. Qg8+ {[%clk 0:00:00]}  Kd7 {[%clk 0:00:00]} 38. Qxh7 {[%clk 0:00:00]}  Kc6 {[%clk 0:00:00]} 39. Rc1+ {[%clk 0:00:00]}  Kb6 {[%clk 0:00:00]} 40. Rxc7 {[%clk 0:00:00]}  Qxc7 {[%clk 0:00:00]} 41. Qg6+ {[%clk 0:00:00]}  Ka5 {[%clk 0:00:00]} 42. h4 {[%clk 0:00:00]}  Qf4 {[%clk 0:00:00]} 43. Qc2 {[%clk 0:00:00]}  Qxh4+ {[%clk 0:00:00]} 44. Kg2 {[%clk 0:00:00]}  Qxg5+ {[%clk 0:00:00]} 45. Kf3 {[%clk 0:00:00]}  Qh5+ {[%clk 0:00:00]} 46. Ke3 {[%clk 0:00:00]}  Bg5+ {[%clk 0:00:00]} 47. Kd3 {[%clk 0:00:00]}  Qg6+ {[%clk 0:00:00]} 48. Kc3 {[%clk 0:00:00]}  Qxc2+ {[%clk 0:00:00]} 49. Kxc2 {[%clk 0:00:00]}  Kb4 {[%clk 0:00:00]} 0-1


[Site "https://www.chess.com"]

[Event "Titled Tuesday Blitz August 16 Early 2022"]
[White "Martic, Ivan"]
[Black "Acosta Cruz, Oscar Yosimar"]
[WhiteFideId "929301"]
[BlackFideId "5111269"]
[WhiteElo "2355"]
[BlackElo "2147"]
[Result "1-0"]
[Round "05"]
[TimeControl "180+2"]
[Date "2022.08.18"]
[WhiteClock "0:00:00"]
[BlackClock "0:00:00"]

1. d4 {[%clk 0:00:00]}  Nf6 {[%clk 0:00:00]} 2. Nf3 {[%clk 0:00:00]}  g6 {[%clk 0:00:00]} 3. Bg5 {[%clk 0:00:00]}  Bg7 {[%clk 0:00:00]} 4. Nbd2 {[%clk 0:00:00]}  h6 {[%clk 0:00:00]} 5. Bh4 {[%clk 0:00:00]}  O-O {[%clk 0:00:00]} 6. c3 {[%clk 0:00:00]}  d6 {[%clk 0:00:00]} 7. e4 {[%clk 0:00:00]}  Nbd7 {[%clk 0:00:00]} 8. Be2 {[%clk 0:00:00]}  Qe8 {[%clk 0:00:00]} 9. O-O {[%clk 0:00:00]}  e5 {[%clk 0:00:00]} 10. dxe5 {[%clk 0:00:00]}  dxe5 {[%clk 0:00:00]} 11. Re1 {[%clk 0:00:00]}  Nc5 {[%clk 0:00:00]} 12. Qc2 {[%clk 0:00:00]}  Nfd7 {[%clk 0:00:00]} 13. Bf1 {[%clk 0:00:00]}  Ne6 {[%clk 0:00:00]} 14. Nc4 {[%clk 0:00:00]}  b5 {[%clk 0:00:00]} 15. Ne3 {[%clk 0:00:00]}  c6 {[%clk 0:00:00]} 16. a4 {[%clk 0:00:00]}  bxa4 {[%clk 0:00:00]} 17. Rxa4 {[%clk 0:00:00]}  Ndc5 {[%clk 0:00:00]} 18. Ra5 {[%clk 0:00:00]}  g5 {[%clk 0:00:00]} 19. Bg3 {[%clk 0:00:00]}  Qd8 {[%clk 0:00:00]} 20. b4 {[%clk 0:00:00]}  Qc7 {[%clk 0:00:00]} 21. Rxc5 {[%clk 0:00:00]}  Nxc5 {[%clk 0:00:00]} 22. bxc5 {[%clk 0:00:00]}  a5 {[%clk 0:00:00]} 23. Nf5 {[%clk 0:00:00]}  Bxf5 {[%clk 0:00:00]} 24. exf5 {[%clk 0:00:00]}  f6 {[%clk 0:00:00]} 25. Bc4+ {[%clk 0:00:00]}  Kh7 {[%clk 0:00:00]} 26. h4 {[%clk 0:00:00]}  Rfd8 {[%clk 0:00:00]} 27. hxg5 {[%clk 0:00:00]}  hxg5 {[%clk 0:00:00]} 28. Nxg5+ {[%clk 0:00:00]}  fxg5 {[%clk 0:00:00]} 29. f6+ {[%clk 0:00:00]}  Kh8 {[%clk 0:00:00]} 1-0


[Site "https://www.chess.com"]

[Event "Titled Tuesday Blitz August 16 Early 2022"]
[White "Martinez Alcantara, Jose Eduardo"]
[Black "Schmakel, Sam"]
[WhiteFideId "3805662"]
[BlackFideId "2039311"]
[WhiteElo "2703"]
[BlackElo "2356"]
[Result "1-0"]
[Round "05"]
[TimeControl "180+1"]
[Date "2022.08.16"]
[WhiteClock "0:00:50"]
[BlackClock "0:00:03"]

1. e4 {[%clk 0:03:00]}  c5 {[%clk 0:03:00]} 2. Nf3 {[%clk 0:03:00]}  d6 {[%clk 0:03:00]} 3. c3 {[%clk 0:03:01]}  Nf6 {[%clk 0:03:01]} 4. h3 {[%clk 0:03:02]}  g6 {[%clk 0:03:00]} 5. Bd3 {[%clk 0:03:02]}  Bg7 {[%clk 0:03:00]} 6. Bc2 {[%clk 0:03:02]}  O-O {[%clk 0:02:59]} 7. d4 {[%clk 0:03:03]}  cxd4 {[%clk 0:02:53]} 8. cxd4 {[%clk 0:03:04]}  Nc6 {[%clk 0:02:53]} 9. O-O {[%clk 0:03:02]}  Nb4 {[%clk 0:02:45]} 10. Bb3 {[%clk 0:03:02]}  d5 {[%clk 0:02:42]} 11. e5 {[%clk 0:03:02]}  Ne4 {[%clk 0:02:42]} 12. Nc3 {[%clk 0:03:02]}  Bf5 {[%clk 0:02:37]} 13. Ne2 {[%clk 0:03:00]}  f6 {[%clk 0:02:09]} 14. Nf4 {[%clk 0:02:39]}  g5 {[%clk 0:01:46]} 15. a3 {[%clk 0:02:38]}  gxf4 {[%clk 0:01:41]} 16. axb4 {[%clk 0:02:37]}  e6 {[%clk 0:01:20]} 17. Bxf4 {[%clk 0:02:34]}  Qe7 {[%clk 0:01:17]} 18. b5 {[%clk 0:02:24]}  Kh8 {[%clk 0:01:16]} 19. Ra3 {[%clk 0:02:16]}  Rg8 {[%clk 0:01:15]} 20. Kh2 {[%clk 0:02:13]}  fxe5 {[%clk 0:01:00]} 21. Nxe5 {[%clk 0:02:06]}  Raf8 {[%clk 0:00:50]} 22. Bc2 {[%clk 0:02:06]}  Qh4 {[%clk 0:00:47]} 23. Qc1 {[%clk 0:01:53]}  Bf6 {[%clk 0:00:31]} 24. Bxe4 {[%clk 0:01:33]}  Bxe4 {[%clk 0:00:29]} 25. Rg3 {[%clk 0:01:34]}  Be7 {[%clk 0:00:19]} 26. Ng4 {[%clk 0:01:14]}  Bg5 {[%clk 0:00:09]} 27. Be5+ {[%clk 0:01:12]}  Rg7 {[%clk 0:00:08]} 28. f4 {[%clk 0:01:08]}  Be7 {[%clk 0:00:08]} 29. Qe1 {[%clk 0:01:01]}  Bg6 {[%clk 0:00:03]} 30. Bxg7+ {[%clk 0:01:00]}  Kxg7 {[%clk 0:00:04]} 31. Qxe6 {[%clk 0:00:57]}  Bf5 {[%clk 0:00:04]} 32. Qe5+ {[%clk 0:00:55]}  Kg6 {[%clk 0:00:03]} 33. Ne3+ {[%clk 0:00:50]} 1-0


[Site "https://www.chess.com"]